[Event "Early-Titled-Tuesday-Blitz-February-13-2024"]
[Site "Chess.com"]
[Date "2024.02.13"]
[Round "11"]
[White "JeFumeDesClopes"]
[Black "ilqar_74"]
[Result "0-1"]
[WhiteElo "2598"]
[BlackElo "2794"]
[TimeControl "180+1"]
[EndTime "10:09:46 PST"]
[Termination "ilqar_74 won by resignation"]

1. Nf3 {[%clk 0:03:00.9]} 1... Nf6 {[%clk 0:03:00]} 2. g3 {[%clk 0:03:00.9]}
2... e6 {[%clk 0:03:00.2]} 3. Bg2 {[%clk 0:03:01.2]} 3... d5 {[%clk 0:03:00.9]}
4. O-O {[%clk 0:03:01.8]} 4... Be7 {[%clk 0:03:01.5]} 5. c4 {[%clk 0:03:02.5]}
5... O-O {[%clk 0:03:02.1]} 6. b3 {[%clk 0:03:02.8]} 6... c5 {[%clk 0:03:02.1]}
7. cxd5 {[%clk 0:03:02.6]} 7... exd5 {[%clk 0:03:02.2]} 8. d4 {[%clk 0:03:03]}
8... Nc6 {[%clk 0:03:02.5]} 9. Bb2 {[%clk 0:03:03.1]} 9... cxd4 {[%clk
0:03:02.6]} 10. Nxd4 {[%clk 0:03:04]} 10... Qb6 {[%clk 0:03:03.1]} 11. Nxc6
{[%clk 0:02:45.4]} 11... bxc6 {[%clk 0:03:04]} 12. Nc3 {[%clk 0:02:45.9]} 12...
Bg4 {[%clk 0:03:00.5]} 13. h3 {[%clk 0:02:45]} 13... Bh5 {[%clk 0:03:00.3]} 14.
Rc1 {[%clk 0:02:43.4]} 14... Rfe8 {[%clk 0:02:50.9]} 15. Na4 {[%clk 0:02:41.1]}
15... Qa6 {[%clk 0:02:48.3]} 16. g4 {[%clk 0:02:40.3]} 16... Bg6 {[%clk
0:02:48]} 17. e3 {[%clk 0:02:27.8]} 17... Ne4 {[%clk 0:02:44.6]} 18. Re1 {[%clk
0:02:08.9]} 18... Bh4 {[%clk 0:02:41.5]} 19. Re2 {[%clk 0:01:57.1]} 19... h5
{[%clk 0:02:38.5]} 20. Nc3 {[%clk 0:01:43.7]} 20... hxg4 {[%clk 0:02:34.2]} 21.
hxg4 {[%clk 0:01:41]} 21... Qc8 {[%clk 0:02:24.6]} 22. Nxd5 {[%clk 0:01:22.5]}
22... Qxg4 {[%clk 0:01:49.2]} 23. f3 {[%clk 0:01:09.4]} 23... Qg3 {[%clk
0:01:41.4]} 24. Qd4 {[%clk 0:00:46]} 24... Nf6 {[%clk 0:01:29.4]} 25. Nf4 {[%clk
0:00:46.3]} 25... Rad8 {[%clk 0:01:23.6]} 26. Qc3 {[%clk 0:00:39.8]} 26... Bf5
{[%clk 0:01:11.9]} 27. Rd2 {[%clk 0:00:27.9]} 27... Rxd2 {[%clk 0:00:51.6]} 28.
Qxd2 {[%clk 0:00:28]} 28... Bg5 {[%clk 0:00:51.3]} 29. Bxf6 {[%clk 0:00:21.2]}
29... Bxf6 {[%clk 0:00:41.2]} 30. Nh5 {[%clk 0:00:20.9]} 30... Qg5 {[%clk
0:00:36]} 31. Nxf6+ {[%clk 0:00:20.4]} 31... Qxf6 {[%clk 0:00:36.9]} 32. e4
{[%clk 0:00:20.7]} 32... Bg6 {[%clk 0:00:36.5]} 33. Qc3 {[%clk 0:00:20]} 33...
Qg5 {[%clk 0:00:32.4]} 34. Re1 {[%clk 0:00:17.8]} 34... Bh5 {[%clk 0:00:27.9]}
35. Qxc6 {[%clk 0:00:16.8]} 35... Rd8 {[%clk 0:00:26.5]} 36. Qc3 {[%clk
0:00:16.9]} 36... Rd2 {[%clk 0:00:22.4]} 37. Qc8+ {[%clk 0:00:17.1]} 37... Rd8
{[%clk 0:00:21.8]} 38. Qf5 {[%clk 0:00:16.2]} 38... Qg3 {[%clk 0:00:17.5]} 39.
Re2 {[%clk 0:00:14.7]} 39... Rd1+ {[%clk 0:00:16.8]} 0-1

[Event "Early-Titled-Tuesday-Blitz-February-13-2024"]
[Site "Chess.com"]
[Date "2024.02.13"]
[Round "11"]
[White "Abund"]
[Black "soloderisas"]
[Result "1-0"]
[WhiteElo "2772"]
[BlackElo "2548"]
[TimeControl "180+1"]
[EndTime "10:09:47 PST"]
[Termination "Abund won by checkmate"]

1. e4 {[%clk 0:02:59.7]} 1... e5 {[%clk 0:02:59.5]} 2. Nf3 {[%clk 0:02:57]} 2...
Nc6 {[%clk 0:03:00]} 3. Bb5 {[%clk 0:02:57.2]} 3... a6 {[%clk 0:03:00.1]} 4. Ba4
{[%clk 0:02:57.7]} 4... Nf6 {[%clk 0:02:58.9]} 5. O-O {[%clk 0:02:58.1]} 5... b5
{[%clk 0:02:57.6]} 6. Bb3 {[%clk 0:02:58]} 6... Bc5 {[%clk 0:02:58.2]} 7. d3
{[%clk 0:02:53.3]} 7... d6 {[%clk 0:02:57.4]} 8. Be3 {[%clk 0:02:43.7]} 8... O-O
{[%clk 0:02:53.2]} 9. a3 {[%clk 0:02:36.4]} 9... Bg4 {[%clk 0:02:45.4]} 10. Nbd2
{[%clk 0:02:34.4]} 10... Qe7 {[%clk 0:02:38.7]} 11. Re1 {[%clk 0:02:34]} 11...
Nd4 {[%clk 0:02:37.5]} 12. h3 {[%clk 0:02:18.2]} 12... Bxf3 {[%clk 0:02:33.8]}
13. Nxf3 {[%clk 0:02:17.4]} 13... Nxb3 {[%clk 0:02:33.3]} 14. cxb3 {[%clk
0:02:17.6]} 14... Bxe3 {[%clk 0:02:31]} 15. Rxe3 {[%clk 0:02:12.3]} 15... c5
{[%clk 0:02:30.9]} 16. b4 {[%clk 0:02:06.7]} 16... Rfc8 {[%clk 0:02:27.7]} 17.
Qd2 {[%clk 0:02:02.8]} 17... Rc6 {[%clk 0:02:23.4]} 18. Rc1 {[%clk 0:01:58.3]}
18... Rac8 {[%clk 0:02:23.4]} 19. Ree1 {[%clk 0:01:54.7]} 19... h6 {[%clk
0:02:15.9]} 20. Rc3 {[%clk 0:01:53.5]} 20... Nd7 {[%clk 0:01:58.7]} 21. Rec1
{[%clk 0:01:51.6]} 21... Nb6 {[%clk 0:01:56.8]} 22. R3c2 {[%clk 0:01:41.5]}
22... Kf8 {[%clk 0:01:13.4]} 23. Qe3 {[%clk 0:01:35.7]} 23... Na4 {[%clk
0:00:59.8]} 24. b3 {[%clk 0:01:20.2]} 24... Nb6 {[%clk 0:00:59.6]} 25. bxc5
{[%clk 0:01:20.6]} 25... Rxc5 {[%clk 0:00:57.8]} 26. Qd2 {[%clk 0:01:17]} 26...
d5 {[%clk 0:00:51.7]} 27. Rxc5 {[%clk 0:00:47.9]} 27... Rxc5 {[%clk 0:00:52.6]}
28. Rxc5 {[%clk 0:00:34]} 28... Qxc5 {[%clk 0:00:53.5]} 29. b4 {[%clk
0:00:34.3]} 29... Qc7 {[%clk 0:00:49.6]} 30. Qb2 {[%clk 0:00:29.3]} 30... d4
{[%clk 0:00:48.3]} 31. Qb3 {[%clk 0:00:20.5]} 31... Qc1+ {[%clk 0:00:26.2]} 32.
Kh2 {[%clk 0:00:20.6]} 32... Qf4+ {[%clk 0:00:25.4]} 33. Kg1 {[%clk 0:00:20.6]}
33... Qc1+ {[%clk 0:00:22.4]} 34. Kh2 {[%clk 0:00:20.9]} 34... Qf4+ {[%clk
0:00:22.7]} 35. Kh1 {[%clk 0:00:19.3]} 35... Na4 {[%clk 0:00:21.3]} 36. Qd5
{[%clk 0:00:17.3]} 36... Qc1+ {[%clk 0:00:17.1]} 37. Kh2 {[%clk 0:00:16.8]}
37... Qf4+ {[%clk 0:00:16.2]} 38. g3 {[%clk 0:00:15.1]} 38... Qxf3 {[%clk
0:00:16]} 39. Qd8# {[%clk 0:00:15.2]} 1-0

[Event "Early-Titled-Tuesday-Blitz-February-13-2024"]
[Site "Chess.com"]
[Date "2024.02.13"]
[Round "11"]
[White "Cirky"]
[Black "Roman_Ovetchkin"]
[Result "1-0"]
[WhiteElo "2495"]
[BlackElo "2598"]
[TimeControl "180+1"]
[EndTime "10:09:47 PST"]
[Termination "Cirky won on time"]

1. d4 {[%clk 0:03:00.9]} 1... Nf6 {[%clk 0:02:59.3]} 2. c4 {[%clk 0:03:00]} 2...
c5 {[%clk 0:02:58.4]} 3. d5 {[%clk 0:03:00.2]} 3... b5 {[%clk 0:02:58.2]} 4.
cxb5 {[%clk 0:03:00.6]} 4... a6 {[%clk 0:02:58.6]} 5. Nc3 {[%clk 0:03:00.7]}
5... axb5 {[%clk 0:02:58.1]} 6. Nxb5 {[%clk 0:03:01.6]} 6... Ba6 {[%clk
0:02:53.8]} 7. Nc3 {[%clk 0:02:59.2]} 7... g6 {[%clk 0:02:51.7]} 8. Nf3 {[%clk
0:02:58.6]} 8... Bg7 {[%clk 0:02:51.6]} 9. e4 {[%clk 0:02:58.8]} 9... Bxf1
{[%clk 0:02:51]} 10. Kxf1 {[%clk 0:02:59.7]} 10... O-O {[%clk 0:02:49.1]} 11. e5
{[%clk 0:02:53.6]} 11... Ne8 {[%clk 0:02:48]} 12. g3 {[%clk 0:02:47]} 12... d6
{[%clk 0:02:47.3]} 13. Qe2 {[%clk 0:02:43.3]} 13... Nd7 {[%clk 0:02:30.2]} 14.
Bf4 {[%clk 0:02:17.7]} 14... Nb6 {[%clk 0:02:01.4]} 15. Rd1 {[%clk 0:01:59.6]}
15... Na4 {[%clk 0:01:52.9]} 16. Kg2 {[%clk 0:01:56.2]} 16... Nxc3 {[%clk
0:01:49]} 17. bxc3 {[%clk 0:01:56.5]} 17... Ra3 {[%clk 0:01:48.5]} 18. c4 {[%clk
0:01:49.5]} 18... Qa8 {[%clk 0:01:46.9]} 19. Rd2 {[%clk 0:01:48.8]} 19... dxe5
{[%clk 0:01:15.4]} 20. Nxe5 {[%clk 0:01:25.3]} 20... e6 {[%clk 0:01:00.2]} 21.
Nd7 {[%clk 0:01:14]} 21... Nf6 {[%clk 0:00:59.4]} 22. Nxf8 {[%clk 0:01:13.6]}
22... exd5 {[%clk 0:00:44.5]} 23. cxd5 {[%clk 0:00:44.3]} 23... Nxd5 {[%clk
0:00:39.1]} 24. f3 {[%clk 0:00:30.4]} 24... Bxf8 {[%clk 0:00:24.5]} 25. Rhd1
{[%clk 0:00:22]} 25... Nc3 {[%clk 0:00:23.4]} 26. Qe5 {[%clk 0:00:19.5]} 26...
Nxd1 {[%clk 0:00:21.9]} 27. Rxd1 {[%clk 0:00:20.4]} 27... Rxa2+ {[%clk
0:00:21.7]} 28. Kh3 {[%clk 0:00:21.1]} 28... Qxf3 {[%clk 0:00:08.6]} 29. Rd8
{[%clk 0:00:07.8]} 29... Qf1+ {[%clk 0:00:08.4]} 30. Kg4 {[%clk 0:00:07.3]}
30... h5+ {[%clk 0:00:03.6]} 31. Kg5 {[%clk 0:00:05.6]} 1-0

[Event "Early-Titled-Tuesday-Blitz-February-13-2024"]
[Site "Chess.com"]
[Date "2024.02.13"]
[Round "11"]
[White "Korchmar_Vasiliy"]
[Black "Predator0608"]
[Result "1-0"]
[WhiteElo "2734"]
[BlackElo "2589"]
[TimeControl "180+1"]
[EndTime "10:09:49 PST"]
[Termination "Korchmar_Vasiliy won by resignation"]

1. Nf3 {[%clk 0:03:00.9]} 1... Nf6 {[%clk 0:02:59.9]} 2. g3 {[%clk 0:02:53.8]}
2... b6 {[%clk 0:02:59.7]} 3. Bg2 {[%clk 0:02:53.5]} 3... Bb7 {[%clk 0:03:00.6]}
4. O-O {[%clk 0:02:53.6]} 4... e6 {[%clk 0:03:01.2]} 5. d3 {[%clk 0:02:53.7]}
5... d5 {[%clk 0:03:00.6]} 6. Nbd2 {[%clk 0:02:50.7]} 6... Be7 {[%clk
0:03:00.5]} 7. e4 {[%clk 0:02:50.2]} 7... dxe4 {[%clk 0:03:01.4]} 8. Ng5 {[%clk
0:02:50.4]} 8... O-O {[%clk 0:02:52.6]} 9. Ndxe4 {[%clk 0:02:49.3]} 9... Nxe4
{[%clk 0:02:52.3]} 10. Nxe4 {[%clk 0:02:50.2]} 10... Nd7 {[%clk 0:02:51]} 11.
Nf6+ {[%clk 0:02:45.4]} 11... Nxf6 {[%clk 0:02:50.7]} 12. Bxb7 {[%clk
0:02:46.1]} 12... Rb8 {[%clk 0:02:50.9]} 13. Bg2 {[%clk 0:02:41.6]} 13... c5
{[%clk 0:02:51.3]} 14. a4 {[%clk 0:02:32.6]} 14... Qd7 {[%clk 0:02:41.4]} 15. a5
{[%clk 0:02:26.8]} 15... Rfd8 {[%clk 0:02:41.4]} 16. Bf4 {[%clk 0:02:18]} 16...
Bd6 {[%clk 0:02:37.5]} 17. Bg5 {[%clk 0:02:18.4]} 17... Be5 {[%clk 0:02:32.7]}
18. axb6 {[%clk 0:02:14.1]} 18... Rxb6 {[%clk 0:02:23.2]} 19. Ra5 {[%clk
0:02:05.3]} 19... Bxb2 {[%clk 0:02:14.3]} 20. Rxc5 {[%clk 0:02:03.8]} 20... h6
{[%clk 0:02:12.5]} 21. Bf4 {[%clk 0:01:50.7]} 21... Rc8 {[%clk 0:02:11.7]} 22.
Rxc8+ {[%clk 0:01:40.7]} 22... Qxc8 {[%clk 0:02:12.6]} 23. c4 {[%clk 0:01:41]}
23... a5 {[%clk 0:02:07.8]} 24. Qa4 {[%clk 0:01:40.2]} 24... Bc3 {[%clk
0:02:02.2]} 25. Rc1 {[%clk 0:01:36.7]} 25... Bb4 {[%clk 0:01:43.8]} 26. c5
{[%clk 0:01:36.3]} 26... Ra6 {[%clk 0:01:42.5]} 27. c6 {[%clk 0:01:35.3]} 27...
Nd5 {[%clk 0:01:42]} 28. Bxd5 {[%clk 0:01:31.1]} 28... exd5 {[%clk 0:01:42.9]}
29. c7 {[%clk 0:01:31.6]} 29... Re6 {[%clk 0:01:41.9]} 30. Qb5 {[%clk
0:01:25.9]} 30... d4 {[%clk 0:01:30.7]} 31. Qd5 {[%clk 0:01:25.5]} 31... Bc3
{[%clk 0:01:19.8]} 32. Rb1 {[%clk 0:01:21.1]} 32... Bb4 {[%clk 0:01:14.7]} 33.
Qxd4 {[%clk 0:01:19.5]} 33... Re8 {[%clk 0:01:13.1]} 34. Rc1 {[%clk 0:01:17.2]}
34... Ba3 {[%clk 0:01:02.3]} 35. Rc4 {[%clk 0:01:04.4]} 35... Kh7 {[%clk
0:00:43.7]} 36. Qd5 {[%clk 0:00:42.4]} 36... Qh3 {[%clk 0:00:08.4]} 37. Be3
{[%clk 0:00:41.3]} 37... Bb4 {[%clk 0:00:02]} 38. Qxf7 {[%clk 0:00:38.5]} 38...
Rc8 {[%clk 0:00:02.6]} 39. g4 {[%clk 0:00:32.4]} 39... Qh4 {[%clk 0:00:01.6]}
40. Qf5+ {[%clk 0:00:32.4]} 1-0

[Event "Early-Titled-Tuesday-Blitz-February-13-2024"]
[Site "Chess.com"]
[Date "2024.02.13"]
[Round "11"]
[White "Alenzer"]
[Black "Chernov_Alexander_A"]
[Result "0-1"]
[WhiteElo "2135"]
[BlackElo "2305"]
[TimeControl "180+1"]
[EndTime "10:09:49 PST"]
[Termination "Chernov_Alexander_A won on time"]

1. e4 {[%clk 0:02:48.3]} 1... d6 {[%clk 0:02:58]} 2. d4 {[%clk 0:02:47.7]} 2...
Nf6 {[%clk 0:02:58]} 3. Nc3 {[%clk 0:02:47.2]} 3... Nbd7 {[%clk 0:02:57.9]} 4.
Be3 {[%clk 0:02:41.8]} 4... e5 {[%clk 0:02:56.4]} 5. Nf3 {[%clk 0:02:40.6]} 5...
c6 {[%clk 0:02:54.8]} 6. h3 {[%clk 0:02:39.6]} 6... Be7 {[%clk 0:02:49.7]} 7.
Bc4 {[%clk 0:02:39]} 7... O-O {[%clk 0:02:48.9]} 8. a4 {[%clk 0:02:38.7]} 8...
exd4 {[%clk 0:02:41.4]} 9. Nxd4 {[%clk 0:02:38.1]} 9... Ne5 {[%clk 0:02:41.3]}
10. Bb3 {[%clk 0:02:30.1]} 10... Qc7 {[%clk 0:02:41.1]} 11. O-O {[%clk
0:02:27.9]} 11... Bd7 {[%clk 0:02:38.7]} 12. Nf5 {[%clk 0:02:02.1]} 12... Bxf5
{[%clk 0:02:34.9]} 13. exf5 {[%clk 0:02:02.2]} 13... d5 {[%clk 0:02:35]} 14. Bg5
{[%clk 0:01:54.9]} 14... Rfe8 {[%clk 0:02:22.6]} 15. Re1 {[%clk 0:01:40.9]}
15... Rad8 {[%clk 0:02:13.4]} 16. Qd2 {[%clk 0:01:38.4]} 16... Bd6 {[%clk
0:01:57.7]} 17. Ne2 {[%clk 0:01:37.8]} 17... Bc5 {[%clk 0:01:55.3]} 18. c3
{[%clk 0:01:32.4]} 18... Nh5 {[%clk 0:01:34.1]} 19. Nd4 {[%clk 0:01:26.5]} 19...
Rc8 {[%clk 0:01:19]} 20. Bc2 {[%clk 0:01:25.3]} 20... Be7 {[%clk 0:01:11.2]} 21.
f6 {[%clk 0:01:14.2]} 21... Nxf6 {[%clk 0:01:07.8]} 22. Nf5 {[%clk 0:01:10.9]}
22... Bc5 {[%clk 0:01:03.5]} 23. Nxg7 {[%clk 0:00:34.1]} 23... Kxg7 {[%clk
0:00:54.4]} 24. Bh6+ {[%clk 0:00:34.4]} 24... Kh8 {[%clk 0:00:53.4]} 25. Qg5
{[%clk 0:00:32]} 25... Nf3+ {[%clk 0:00:50.7]} 26. gxf3 {[%clk 0:00:21.4]} 26...
Rg8 {[%clk 0:00:50.1]} 27. Qxg8+ {[%clk 0:00:07.8]} 27... Rxg8+ {[%clk
0:00:48.3]} 28. Kf1 {[%clk 0:00:08.1]} 28... Qh2 {[%clk 0:00:41.5]} 29. Ke2
{[%clk 0:00:06.7]} 29... Qxf2+ {[%clk 0:00:38.9]} 30. Kd1 {[%clk 0:00:05.1]}
30... Qxf3+ {[%clk 0:00:35.8]} 31. Kc1 {[%clk 0:00:05.5]} 31... Ne4 {[%clk
0:00:26.8]} 32. Kb1 {[%clk 0:00:03.3]} 32... Qf6 {[%clk 0:00:23.9]} 33. Be3
{[%clk 0:00:02.1]} 33... Bxe3 {[%clk 0:00:21.8]} 34. Rxe3 {[%clk 0:00:02.4]}
34... Qf4 {[%clk 0:00:21.5]} 35. Re1 {[%clk 0:00:02]} 35... Nd2+ {[%clk
0:00:18.3]} 0-1

[Event "Early-Titled-Tuesday-Blitz-February-13-2024"]
[Site "Chess.com"]
[Date "2024.02.13"]
[Round "11"]
[White "pfalcon1949"]
[Black "lluiss"]
[Result "1-0"]
[WhiteElo "1950"]
[BlackElo "2145"]
[TimeControl "180+1"]
[EndTime "10:09:50 PST"]
[Termination "pfalcon1949 won on time"]

1. e4 {[%clk 0:03:00.9]} 1... e6 {[%clk 0:02:58.1]} 2. d4 {[%clk 0:02:59.7]}
2... d5 {[%clk 0:02:57]} 3. Nc3 {[%clk 0:02:59.6]} 3... Nf6 {[%clk 0:02:56]} 4.
e5 {[%clk 0:02:58.9]} 4... Nfd7 {[%clk 0:02:56]} 5. f4 {[%clk 0:02:59.5]} 5...
g6 {[%clk 0:02:55.6]} 6. Nf3 {[%clk 0:03:00.2]} 6... h5 {[%clk 0:02:55.1]} 7.
Be3 {[%clk 0:03:00.4]} 7... Be7 {[%clk 0:02:55.3]} 8. Bd3 {[%clk 0:03:00.6]}
8... b6 {[%clk 0:02:55.5]} 9. Ne2 {[%clk 0:02:59.5]} 9... Ba6 {[%clk 0:02:54.3]}
10. c3 {[%clk 0:02:59.8]} 10... Bxd3 {[%clk 0:02:54.1]} 11. Qxd3 {[%clk
0:03:00.6]} 11... c5 {[%clk 0:02:52.2]} 12. O-O {[%clk 0:02:59.5]} 12... Kf8
{[%clk 0:02:52.2]} 13. Kh1 {[%clk 0:02:54.8]} 13... Kg7 {[%clk 0:02:52.1]} 14.
Rg1 {[%clk 0:02:55.1]} 14... Nc6 {[%clk 0:02:24.8]} 15. g3 {[%clk 0:02:49.9]}
15... c4 {[%clk 0:02:10.5]} 16. Qc2 {[%clk 0:02:48.9]} 16... b5 {[%clk
0:02:10.8]} 17. Rg2 {[%clk 0:02:49.3]} 17... b4 {[%clk 0:02:10.2]} 18. Rag1
{[%clk 0:02:48.7]} 18... Rh7 {[%clk 0:02:07.8]} 19. g4 {[%clk 0:02:43.8]} 19...
hxg4 {[%clk 0:02:07.8]} 20. Rxg4 {[%clk 0:02:43.3]} 20... Nf8 {[%clk 0:01:55.7]}
21. f5 {[%clk 0:02:41.2]} 21... exf5 {[%clk 0:01:52]} 22. Qxf5 {[%clk
0:02:41.1]} 22... Qd7 {[%clk 0:01:52.5]} 23. Rxg6+ {[%clk 0:02:25.7]} 23... fxg6
{[%clk 0:01:46.8]} 24. Rxg6+ {[%clk 0:02:25.3]} 24... Kh8 {[%clk 0:01:47]} 25.
e6 {[%clk 0:02:12.2]} 25... Qd6 {[%clk 0:01:35.7]} 26. Bf4 {[%clk 0:02:06.4]}
26... Nxg6 {[%clk 0:01:22.3]} 27. Bxd6 {[%clk 0:02:03.6]} 27... Bxd6 {[%clk
0:01:22.3]} 28. Qxg6 {[%clk 0:01:53.6]} 28... Rf8 {[%clk 0:01:11.5]} 29. Ng5
{[%clk 0:01:20.6]} 29... Rxh2+ {[%clk 0:00:47.1]} 30. Kg1 {[%clk 0:01:19.5]}
30... Ne7 {[%clk 0:00:32.1]} 31. Nf7+ {[%clk 0:01:07.9]} 31... Rxf7 {[%clk
0:00:31.3]} 32. Qxf7 {[%clk 0:01:05.6]} 32... Rh7 {[%clk 0:00:25.6]} 33. Qf6+
{[%clk 0:00:52.3]} 33... Rg7+ {[%clk 0:00:23.9]} 34. Kf1 {[%clk 0:00:49.6]}
34... Kg8 {[%clk 0:00:21.8]} 35. Nf4 {[%clk 0:00:46.9]} 35... bxc3 {[%clk
0:00:19.7]} 36. bxc3 {[%clk 0:00:43.9]} 36... Nc6 {[%clk 0:00:07.8]} 37. Ng6
{[%clk 0:00:37]} 37... Ne7 {[%clk 0:00:03.7]} 38. Qf8+ {[%clk 0:00:31.5]} 38...
Kh7 {[%clk 0:00:03.7]} 39. Nxe7 {[%clk 0:00:30.4]} 39... Bxe7 {[%clk 0:00:03.9]}
40. Qf5+ {[%clk 0:00:30.1]} 40... Kg8 {[%clk 0:00:03.5]} 41. Qxd5 {[%clk
0:00:30]} 41... Rg6 {[%clk 0:00:02.8]} 42. Qa8+ {[%clk 0:00:28.2]} 42... Kg7
{[%clk 0:00:02.5]} 43. d5 {[%clk 0:00:28.4]} 43... Rxe6 {[%clk 0:00:03.4]} 44.
dxe6 {[%clk 0:00:28.3]} 1-0

[Event "Early-Titled-Tuesday-Blitz-February-13-2024"]
[Site "Chess.com"]
[Date "2024.02.13"]
[Round "11"]
[White "edgarhay012"]
[Black "eagleclaw07"]
[Result "1-0"]
[WhiteElo "2651"]
[BlackElo "2788"]
[TimeControl "180+1"]
[EndTime "10:09:52 PST"]
[Termination "edgarhay012 won by resignation"]

1. e4 {[%clk 0:03:00.9]} 1... Nf6 {[%clk 0:03:00.9]} 2. e5 {[%clk 0:03:00.6]}
2... Nd5 {[%clk 0:03:00.8]} 3. d4 {[%clk 0:03:00.9]} 3... d6 {[%clk 0:03:01.4]}
4. exd6 {[%clk 0:03:01.8]} 4... exd6 {[%clk 0:03:01.8]} 5. c4 {[%clk 0:03:02.2]}
5... Nb6 {[%clk 0:03:02.1]} 6. Nf3 {[%clk 0:03:02.9]} 6... Be7 {[%clk 0:03:02]}
7. b3 {[%clk 0:03:01.4]} 7... O-O {[%clk 0:03:02.4]} 8. Be2 {[%clk 0:03:02]}
8... Nc6 {[%clk 0:03:02.7]} 9. O-O {[%clk 0:03:02.3]} 9... Bf6 {[%clk 0:03:03]}
10. Be3 {[%clk 0:03:02.8]} 10... Bg4 {[%clk 0:03:02.7]} 11. Nc3 {[%clk
0:03:00.9]} 11... d5 {[%clk 0:03:01.8]} 12. c5 {[%clk 0:03:00.6]} 12... Nc8
{[%clk 0:03:02.4]} 13. Qd2 {[%clk 0:02:57.5]} 13... N8e7 {[%clk 0:03:01.9]} 14.
h3 {[%clk 0:02:55.6]} 14... Bxf3 {[%clk 0:02:58]} 15. Bxf3 {[%clk 0:02:56.5]}
15... Qd7 {[%clk 0:02:55.8]} 16. Rfe1 {[%clk 0:02:53.9]} 16... Rad8 {[%clk
0:02:54.8]} 17. Ne2 {[%clk 0:02:47]} 17... Nf5 {[%clk 0:02:53.6]} 18. Bg4 {[%clk
0:02:47]} 18... g6 {[%clk 0:02:40.9]} 19. Ng3 {[%clk 0:02:45.8]} 19... Nce7
{[%clk 0:02:40.6]} 20. Bf4 {[%clk 0:02:08]} 20... h5 {[%clk 0:02:34.8]} 21. Nxf5
{[%clk 0:02:04.6]} 21... Nxf5 {[%clk 0:02:32.6]} 22. Bxf5 {[%clk 0:02:04.6]}
22... Qxf5 {[%clk 0:02:20.2]} 23. Bxc7 {[%clk 0:02:04.8]} 23... Rc8 {[%clk
0:02:17.7]} 24. Be5 {[%clk 0:02:04.4]} 24... Bg5 {[%clk 0:02:15.5]} 25. Qc3
{[%clk 0:01:52.7]} 25... Rfe8 {[%clk 0:02:13.7]} 26. b4 {[%clk 0:01:49.4]} 26...
Re6 {[%clk 0:02:09.4]} 27. b5 {[%clk 0:01:44.9]} 27... Rce8 {[%clk 0:02:08.9]}
28. Rf1 {[%clk 0:01:39.4]} 28... Bf6 {[%clk 0:02:01.3]} 29. Bxf6 {[%clk
0:01:34.9]} 29... Qxf6 {[%clk 0:02:02.2]} 30. a4 {[%clk 0:01:34.1]} 30... Re2
{[%clk 0:01:55.1]} 31. a5 {[%clk 0:01:30.7]} 31... Qf5 {[%clk 0:01:43.3]} 32. b6
{[%clk 0:01:24.1]} 32... Rc2 {[%clk 0:01:39.2]} 33. Qg3 {[%clk 0:01:17.8]} 33...
a6 {[%clk 0:01:35.6]} 34. Rae1 {[%clk 0:01:15.2]} 34... Rc8 {[%clk 0:00:46.3]}
35. Qd6 {[%clk 0:01:13]} 35... Rd2 {[%clk 0:00:33.7]} 36. Re5 {[%clk 0:01:10.3]}
36... Qd3 {[%clk 0:00:31.6]} 37. Qxd5 {[%clk 0:00:58.1]} 37... Qxd4 {[%clk
0:00:31.8]} 38. Qxb7 {[%clk 0:00:56.9]} 38... Rf8 {[%clk 0:00:26.7]} 39. Qe7
{[%clk 0:00:55.9]} 39... Rc2 {[%clk 0:00:19.5]} 40. b7 {[%clk 0:00:54.2]} 40...
Qb4 {[%clk 0:00:19.5]} 41. Rfe1 {[%clk 0:00:34.1]} 41... Qb2 {[%clk 0:00:10.4]}
42. Qxf8+ {[%clk 0:00:30.8]} 42... Kxf8 {[%clk 0:00:10.1]} 43. Re8+ {[%clk
0:00:31.5]} 43... Kg7 {[%clk 0:00:10.5]} 44. b8=Q {[%clk 0:00:32.2]} 44... Qf6
{[%clk 0:00:07.4]} 45. Qe5 {[%clk 0:00:31]} 1-0

[Event "Early-Titled-Tuesday-Blitz-February-13-2024"]
[Site "Chess.com"]
[Date "2024.02.13"]
[Round "11"]
[White "GulamaliRises"]
[Black "Lion_DL"]
[Result "0-1"]
[WhiteElo "2604"]
[BlackElo "2496"]
[TimeControl "180+1"]
[EndTime "10:09:52 PST"]
[Termination "Lion_DL won by checkmate"]

1. e4 {[%clk 0:02:54.3]} 1... c5 {[%clk 0:03:00]} 2. Nf3 {[%clk 0:02:54.8]} 2...
e6 {[%clk 0:03:00.5]} 3. d4 {[%clk 0:02:55.4]} 3... cxd4 {[%clk 0:03:01.4]} 4.
Nxd4 {[%clk 0:02:55.6]} 4... a6 {[%clk 0:03:02]} 5. Bd3 {[%clk 0:02:55.6]} 5...
Nf6 {[%clk 0:03:01.6]} 6. O-O {[%clk 0:02:53.8]} 6... Qc7 {[%clk 0:03:02.1]} 7.
Qe2 {[%clk 0:02:53.6]} 7... d6 {[%clk 0:03:02.5]} 8. c4 {[%clk 0:02:53.8]} 8...
Nbd7 {[%clk 0:03:00]} 9. Nc3 {[%clk 0:02:53.1]} 9... b6 {[%clk 0:02:59.2]} 10.
Rd1 {[%clk 0:02:39.2]} 10... Be7 {[%clk 0:02:55.7]} 11. Nf3 {[%clk 0:02:36.6]}
11... O-O {[%clk 0:02:51.9]} 12. Bf4 {[%clk 0:02:36.5]} 12... Bb7 {[%clk
0:02:51.1]} 13. Rac1 {[%clk 0:02:35.9]} 13... Rac8 {[%clk 0:02:41]} 14. b3
{[%clk 0:02:25.1]} 14... Nc5 {[%clk 0:02:38.9]} 15. Bb1 {[%clk 0:02:23.7]} 15...
Rfd8 {[%clk 0:02:30.7]} 16. h3 {[%clk 0:02:14.6]} 16... Qb8 {[%clk 0:02:29.4]}
17. Nd4 {[%clk 0:01:51.9]} 17... Qa8 {[%clk 0:02:19.8]} 18. f3 {[%clk
0:01:52.1]} 18... Bf8 {[%clk 0:02:15]} 19. Bg5 {[%clk 0:01:39.5]} 19... Be7
{[%clk 0:01:55.7]} 20. Be3 {[%clk 0:01:30.4]} 20... Re8 {[%clk 0:01:41.7]} 21.
g4 {[%clk 0:01:27.7]} 21... d5 {[%clk 0:01:41.3]} 22. cxd5 {[%clk 0:01:09.2]}
22... exd5 {[%clk 0:01:39.8]} 23. e5 {[%clk 0:01:09.7]} 23... Nfd7 {[%clk
0:01:37.4]} 24. f4 {[%clk 0:01:06.4]} 24... Ne4 {[%clk 0:01:26.6]} 25. Nxe4
{[%clk 0:00:51.5]} 25... dxe4 {[%clk 0:01:27.5]} 26. Nf5 {[%clk 0:00:51.7]}
26... Rxc1 {[%clk 0:00:58.6]} 27. Bxc1 {[%clk 0:00:51.4]} 27... Bc5+ {[%clk
0:00:56.6]} 28. Kh2 {[%clk 0:00:51.5]} 28... Nf8 {[%clk 0:00:53.7]} 29. Nd6
{[%clk 0:00:50.4]} 29... Rd8 {[%clk 0:00:39.9]} 30. Nxb7 {[%clk 0:00:37.8]}
30... Rxd1 {[%clk 0:00:34.6]} 31. Qxd1 {[%clk 0:00:38.7]} 31... Qxb7 {[%clk
0:00:32.9]} 32. Qe2 {[%clk 0:00:38.9]} 32... Qd5 {[%clk 0:00:20.2]} 33. Bxe4
{[%clk 0:00:33.8]} 33... Qd4 {[%clk 0:00:20.6]} 34. Qg2 {[%clk 0:00:23.3]} 34...
Ne6 {[%clk 0:00:17.9]} 35. Kg3 {[%clk 0:00:16.8]} 35... Qc3+ {[%clk 0:00:15.8]}
36. Qf3 {[%clk 0:00:05.1]} 36... Qxc1 {[%clk 0:00:14.6]} 37. f5 {[%clk
0:00:03.2]} 37... Qe1+ {[%clk 0:00:14.4]} 38. Kg2 {[%clk 0:00:01.6]} 38... Qg1#
{[%clk 0:00:14.6]} 0-1